fUST/lending_fUST_20250613
["ID","MTS","AMOUNT","RATE_DAILY","PERIOD"]
[365544570,1749775834489,-500.0,0.00022342,2]
[365544571,1749775834499,-500.0,0.00022342,2]
[365544572,1749775834509,-500.0,0.00022342,2]
[365544573,1749775834519,-160.0,0.00022353,2]
[365544574,1749775834529,-160.0,0.00022353,2]
[365544575,1749775834539,-160.0,0.00022353,2]
[365544576,1749775834550,-160.0,0.00022353,2]
[365544577,1749775834561,-160.0,0.00022353,2]
[365544578,1749775834573,-160.0,0.00022353,2]
[365544579,1749775834583,-160.0,0.00022353,2]
[365544580,1749775834593,-844.79171733,0.00022353,2]
[365544581,1749775834604,-500.0,0.00022369,2]
[365544582,1749775834614,-500.0,0.00022387,2]
[365544583,1749775834624,-500.0,0.00022387,2]
[365544584,1749775834635,-500.0,0.00022387,2]
[365544585,1749775834645,-501.49495753,0.00022387,2]
[365544586,1749775834654,-438.76883554,0.00022387,2]
[365544587,1749775834664,-500.0,0.00022387,2]
[365544588,1749775834674,-594.5523253,0.00022387,2]
[365544589,1749775834684,-500.0,0.000224,2]
[365544590,1749775834694,-500.0,0.00022417,2]
[365544591,1749775834708,-2534.32645563,0.00022417,7]
[365544592,1749775834719,-500.0,0.00022425,2]
[365544593,1749775834730,-500.0,0.00022425,2]
[365544594,1749775834741,-500.0,0.00022425,2]
[365544595,1749775834753,-500.0,0.00022433,2]
[365544596,1749775834765,-500.0,0.00022433,2]
[365544597,1749775834776,-204.04,0.00022456,3]
[365544598,1749775834786,-500.0,0.00022481,2]
[365544599,1749775834799,-178.0,0.00022481,2]
[365544600,1749775834810,-628.43,0.0002251,4]
[365544601,1749775834826,-791.19,0.0002251,4]
[365544602,1749775834836,-801.09,0.0002251,4]
[365544603,1749775834847,-460.0,0.0002251,4]
[365544604,1749775834857,-460.0,0.0002251,4]
[365544605,1749775834868,-460.0,0.0002251,4]
[365544606,1749775834878,-460.0,0.0002251,4]
[365544607,1749775834888,-460.0,0.0002251,4]
[365544608,1749775834897,-460.0,0.0002251,4]
[365544609,1749775834908,-460.0,0.0002251,4]
[365544610,1749775834918,-460.0,0.0002251,4]
[365544611,1749775834928,-460.0,0.0002251,4]
[365544612,1749775834938,-460.0,0.0002251,4]
[365544613,1749775834947,-661.6,0.0002251,4]
[365544614,1749775834958,-460.0,0.0002251,4]
[365544615,1749775834968,-160.0,0.0002251,4]
[365544616,1749775834978,-1020.4,0.00022511,3]
[365544617,1749775834988,-2534.32645563,0.00022521,7]
[365544618,1749775834999,-190.92129634,0.00022552,2]
[365544619,1749775835009,-408.08,0.00022553,3]
[365544620,1749775835019,-612.12,0.00022553,3]
[365544621,1749775835029,-178.0,0.00022554,2]
[365544622,1749775835039,-460.0,0.00022562,2]
[365544623,1749775835050,-460.0,0.00022563,4]
[365544624,1749775835060,-460.0,0.00022563,4]
[365544625,1749775835073,-460.0,0.00022563,4]
[365544626,1749775835083,-460.0,0.00022563,4]
[365544627,1749775835093,-460.0,0.00022563,4]
[365544628,1749775835103,-380.0,0.00022563,4]
[365544629,1749775835113,-460.0,0.00022563,4]
[365544630,1749775835124,-460.0,0.00022563,4]
[365544631,1749775835133,-460.0,0.00022563,4]
[365544632,1749775835143,-460.0,0.00022563,4]
[365544633,1749775835153,-1233.9,0.00022563,4]
[365544634,1749775835163,-460.0,0.00022563,4]
[365544635,1749775835174,-460.0,0.00022563,4]
[365544636,1749775835184,-460.0,0.00022563,4]
[365544637,1749775835194,-460.0,0.00022563,4]
[365544638,1749775835203,-1097.93,0.00022563,4]
[365544639,1749775835214,-460.0,0.00022563,4]
[365544640,1749775835223,-460.0,0.00022564,4]
[365544641,1749775835234,-460.0,0.00022564,4]
[365544642,1749775835243,-460.0,0.00022564,2]
[365544643,1749775835253,-2534.32645563,0.00022624,7]
[365544644,1749775835263,-157.92258704,0.00022668,2]
[365544645,1749775835272,-816.16,0.00022718,3]
[365544646,1749775835282,-1882.92681026,0.0002272,2]
[365544647,1749775835292,-213.20212768,0.00022728,7]
[365544648,1749775835301,-844.79171733,0.00022728,7]
[365544649,1749775835311,-2534.32645563,0.00022728,7]
[365544650,1749775835324,-1632.31,0.00022732,3]
[365544651,1749775835334,-5000.0,0.00022742,2]
[365544652,1749775835344,-2813.2707381,0.00022742,2]
[365544653,1749775835353,-207.4,0.00022742,2]
[365544654,1749775835364,-178.0,0.00022755,2]
[365544655,1749775835373,-628.43,0.00022784,4]
[365544656,1749775835383,-791.19,0.00022784,4]
[365544657,1749775835393,-801.09,0.00022784,4]
[365544658,1749775835403,-460.0,0.00022784,4]
[365544659,1749775835412,-360.0,0.00022784,4]
[365544660,1749775835422,-360.0,0.00022784,4]
[365544661,1749775835431,-460.0,0.00022784,4]
[365544662,1749775835441,-460.0,0.00022784,4]
[365544663,1749775835450,-360.0,0.00022784,4]
[365544664,1749775835462,-460.0,0.00022784,4]
[365544665,1749775835473,-460.0,0.00022784,4]
[365544666,1749775835483,-460.0,0.00022784,4]
[365544667,1749775835494,-460.0,0.00022784,4]
[365544668,1749775835503,-661.6,0.00022784,4]
[365544669,1749775835513,-460.0,0.00022784,4]
[365544670,1749775835523,-500.0,0.00022797,2]
[365544671,1749775835533,-178.0,0.00022802,2]
[365544672,1749775835543,-178.0,0.00022814,2]
[365544673,1749775835553,-228.27683683,0.00022826,2]
[365544674,1749775835563,-2534.32645563,0.00022831,8]
[365544675,1749775835577,-500.0,0.00022834,2]
[365544676,1749775835587,-1000.0,0.00022834,2]
[365544677,1749775835597,-460.0,0.00022836,2]
[365544678,1749775835607,-460.0,0.00022837,4]
[365544679,1749775835616,-460.0,0.00022837,4]
[365544680,1749775835626,-460.0,0.00022837,4]
[365544681,1749775835636,-460.0,0.00022837,4]
[365544682,1749775835645,-460.0,0.00022837,4]
[365544683,1749775835655,-460.0,0.00022837,4]
[365544684,1749775835665,-460.0,0.00022837,4]
[365544685,1749775835675,-460.0,0.00022837,4]
[365544686,1749775835684,-360.0,0.00022837,4]
[365544687,1749775835694,-1233.9,0.00022837,4]
[365544688,1749775835703,-460.0,0.00022837,4]
[365544689,1749775835713,-460.0,0.00022837,4]
[365544690,1749775835727,-460.0,0.00022837,4]
[365544691,1749775835736,-460.0,0.00022837,4]
[365544692,1749775835747,-1097.93,0.00022837,4]
[365544693,1749775835756,-460.0,0.00022837,4]
[365544694,1749775835766,-460.0,0.00022838,4]
[365544695,1749775835776,-460.0,0.00022838,2]
[365544696,1749775835786,-1014.54290009,0.00022848,2]
[365544697,1749775835797,-503.32066576,0.0002289,2]
[365544698,1749775835806,-500.0,0.0002289,2]
[365544699,1749775835816,-500.0,0.00022917,2]
[365544700,1749775835827,-2534.32645563,0.00022934,8]
[365544701,1749775835837,-500.0,0.00022948,2]
[365544702,1749775835846,-349.96842948,0.00022981,2]
[365544703,1749775835856,-9029.0,0.00023,2]
[365544704,1749775835866,-161.0,0.00023,5]
[365544705,1749775835877,-190.92129634,0.00023007,2]
[365544706,1749775835887,-2534.32645563,0.00023038,8]
[365544707,1749775835897,-628.43,0.00023058,4]
[365544708,1749775835907,-791.19,0.00023058,4]
[365544709,1749775835916,-801.09,0.00023058,4]
[365544710,1749775835926,-460.0,0.00023058,4]
[365544711,1749775835936,-260.0,0.00023058,4]
[365544712,1749775835946,-260.0,0.00023058,4]
[365544713,1749775835955,-293.72,0.00023058,4]
[365544714,1749775835965,-460.0,0.00023058,4]
[365544715,1749775835975,-460.0,0.00023058,4]
[365544716,1749775835985,-231.82476466,0.00023058,4]
[365544717,1749775835995,-661.6,0.00023058,4]
[365544718,1749775836005,-178.0,0.00023091,2]
[365544719,1749775836015,-460.0,0.0002311,2]
[365544720,1749775836025,-460.0,0.00023111,4]
[365544721,1749775836035,-460.0,0.00023111,4]
[365544722,1749775836045,-460.0,0.00023111,4]
[365544723,1749775836054,-460.0,0.00023111,4]
[365544724,1749775836064,-460.0,0.00023111,4]
[365544725,1749775836077,-460.0,0.00023111,4]
[365544726,1749775836087,-460.0,0.00023111,4]
[365544727,1749775836096,-460.0,0.00023111,4]
[365544728,1749775836106,-1233.9,0.00023111,4]
[365544729,1749775836115,-460.0,0.00023111,4]
[365544730,1749775836218,-460.0,0.00023111,4]
[365544731,1749775836229,-460.0,0.00023111,4]
[365544732,1749775836239,-460.0,0.00023111,4]
[365544733,1749775836249,-1097.93,0.00023111,4]
[365544734,1749775836259,-460.0,0.00023111,4]
[365544735,1749775836269,-460.0,0.00023112,4]
[365544736,1749775836278,-460.0,0.00023112,2]
[365544737,1749775836288,-443.72833664,0.00023124,2]
[365544738,1749775836298,-2534.32645563,0.00023141,8]
[365544739,1749775836307,-178.0,0.0002317,2]
[365544740,1749775836316,-2534.32645563,0.00023245,8]
[365544741,1749775836329,-1882.92681026,0.0002325,2]
[365544742,1749775836338,-420.0,0.00023277,2]
[365544743,1749775836347,-420.0,0.00023279,2]
[365544744,1749775836356,-158.8090686,0.00023288,2]
[365544745,1749775836365,-158.8090686,0.00023288,2]
[365544746,1749775836374,-158.63313,0.00023288,2]
[365544747,1749775836384,-5000.0,0.0002329,2]
[365544748,1749775836393,-628.43,0.00023332,4]
[365544749,1749775836403,-791.19,0.00023332,4]
[365544750,1749775836413,-801.09,0.00023332,4]
[365544751,1749775836422,-460.0,0.00023332,4]
[365544752,1749775836432,-460.0,0.00023332,4]
[365544753,1749775836442,-460.0,0.00023332,4]
[365544754,1749775836451,-661.6,0.00023332,4]
[365544755,1749775836461,-505.23537389,0.00023345,2]
[365544756,1749775836470,-2534.32645563,0.00023348,9]
[365544757,1749775836480,-160.0,0.00023369,2]
[365544758,1749775836489,-1000.0,0.00023382,2]
[365544759,1749775836499,-460.0,0.00023384,2]
[365544760,1749775836508,-460.0,0.00023385,4]
[365544761,1749775836517,-460.0,0.00023385,4]
[365544762,1749775836527,-460.0,0.00023385,4]
[365544763,1749775836536,-460.0,0.00023385,4]
[365544764,1749775836546,-460.0,0.00023385,4]
[365544765,1749775836555,-460.0,0.00023385,4]
[365544766,1749775836565,-460.0,0.00023385,4]
[365544767,1749775836578,-460.0,0.00023385,4]
[365544768,1749775836588,-1233.9,0.00023385,4]
[365544769,1749775836599,-460.0,0.00023385,4]
[365544770,1749775836609,-460.0,0.00023385,4]
[365544771,1749775836619,-460.0,0.00023385,4]
[365544772,1749775836628,-460.0,0.00023385,4]
[365544773,1749775836638,-1097.93,0.00023385,4]
[365544774,1749775836647,-460.0,0.00023385,4]
[365544775,1749775836657,-460.0,0.00023386,2]
[365544776,1749775836668,-2534.32645563,0.00023452,9]
[365544777,1749775836677,-190.92129634,0.00023462,2]
[365544778,1749775836687,-4555.11,0.00023487,2]
[365544779,1749775836696,-2534.32645563,0.00023555,9]
[365544780,1749775836707,-151.0,0.000236,10]
[365544781,1749775836717,-628.43,0.00023606,4]
[365544782,1749775836728,-791.19,0.00023606,4]
[365544783,1749775836737,-801.09,0.00023606,4]
[365544784,1749775836748,-460.0,0.00023606,4]
[365544785,1749775836757,-460.0,0.00023606,4]
[365544786,1749775836767,-460.0,0.00023606,4]
[365544787,1749775836777,-661.6,0.00023606,4]
[365544788,1749775836786,-2534.32645563,0.00023659,9]
[365544789,1749775836797,-460.0,0.00023659,4]
[365544790,1749775836807,-460.0,0.00023659,4]
[365544791,1749775836817,-460.0,0.00023659,4]
[365544792,1749775836828,-460.0,0.00023659,4]
[365544793,1749775836839,-460.0,0.00023659,4]
[365544794,1749775836849,-460.0,0.00023659,4]
[365544795,1749775836858,-460.0,0.00023659,4]
[365544796,1749775836868,-335.42,0.00023659,4]
[365544797,1749775836878,-1233.9,0.00023659,4]
[365544798,1749775836888,-460.0,0.00023659,4]
[365544799,1749775836897,-460.0,0.00023659,4]
[365544800,1749775836906,-460.0,0.00023659,4]
[365544801,1749775836916,-460.0,0.00023659,4]
[365544802,1749775836925,-1097.93,0.00023659,4]
[365544803,1749775836934,-460.0,0.00023659,4]
[365544804,1749775836944,-460.0,0.0002366,2]
[365544805,1749775836953,-11478.83104899,0.00023664,2]
[365544806,1749775836962,-963.0,0.0002369,2]
[365544807,1749775836972,-2160.0,0.0002369,2]
[365544808,1749775836982,-653.0,0.0002369,2]
[365544809,1749775836995,-405.0,0.0002369,2]
[365544810,1749775837010,-1215.95449955,0.000237,2]
[365544811,1749775837020,-11862.37599647,0.00023747,2]
[365544812,1749775837029,-213.20212768,0.00023747,2]
[365544813,1749775837039,-835.15920933,0.00023747,2]
[365544814,1749775837048,-424.26423502,0.00023747,2]
[365544815,1749775837057,-229.7508257,0.00023752,2]
[365544816,1749775837067,-2534.32645563,0.00023762,9]
[365544817,1749775837078,-500.0,0.00023763,2]
[365544818,1749775837088,-541.66043374,0.00023763,2]
[365544819,1749775837098,-500.0,0.00023763,2]
[365544820,1749775837107,-500.0,0.00023763,2]
[365544821,1749775837117,-500.0,0.00023763,2]
[365544822,1749775837129,-500.0,0.00023763,2]
[365544823,1749775837138,-500.0,0.00023763,2]
[365544824,1749775837147,-500.0,0.00023763,2]
[365544825,1749775837157,-500.0,0.00023763,2]
[365544826,1749775837166,-157.19649346,0.00023773,2]
[365544827,1749775837176,-500.0,0.00023773,2]
[365544828,1749775837185,-1882.92681026,0.00023781,2]
[365544829,1749775837194,-12500.0,0.000238,3]
[365544830,1749775837204,-4671.50020166,0.000238,3]
[365544831,1749775837214,-160.0,0.000238,3]
[365544832,1749775837225,-160.0,0.000238,3]
[365544833,1749775837235,-160.0,0.000238,3]
[365544834,1749775837245,-213.20212768,0.000238,3]
[365544835,1749775837255,-9891.06663105,0.000238,3]
[365544836,1749775837264,-11862.37599647,0.000238,3]
[365544837,1749775837275,-835.15920933,0.000238,3]
[365544838,1749775837284,-844.79171733,0.000238,3]
[365544839,1749775837293,-160.0,0.000238,3]
[365544840,1749775837303,-7596.50906632,0.000238,3]
[365544841,1749775837410,-699.856,0.000238,3]
[365544910,1749775839024,-2277.56,0.0002142,2]
[365544912,1749775839035,-324.9770171,0.00021898,2]
[365545077,1749775840616,-175.0229829,0.00021898,2]
[365545079,1749775840626,-136.37701709,0.00021898,2]
[365545322,1749775843532,-339.84798291,0.00021898,2]
[365545324,1749775843542,-500.0,0.00021898,2]
[365545326,1749775843552,-500.0,0.00021898,2]
[365545328,1749775843562,-500.0,0.00021898,2]
[365545330,1749775843575,-214.21949014,0.00021898,2]
[365545332,1749775843587,-500.0,0.00021898,2]
[365545334,1749775843597,-205.74974815,0.00021898,2]
[365545336,1749775843607,-500.0,0.00021898,2]
[365545338,1749775843616,-500.0,0.00021898,2]
[365545340,1749775843626,-500.0,0.00021898,2]
[365545342,1749775843635,-169.18118919,0.00021898,2]
[365545344,1749775843645,-500.0,0.00022466,2]
[365545346,1749775843655,-500.0,0.00022466,2]
[365545349,1749775843665,-500.0,0.00022466,2]
[365545352,1749775843676,-500.0,0.00022466,2]
[365545355,1749775843686,-500.0,0.00022466,2]
[365545358,1749775843695,-500.0,0.00022466,2]
[365545360,1749775843705,-500.0,0.00022466,2]
[365545362,1749775843715,-500.0,0.00022466,2]
[365545364,1749775843727,-500.0,0.00022466,2]
[365545366,1749775843737,-500.0,0.00022466,2]
[365545368,1749775843746,-500.0,0.00022466,2]
[365545370,1749775843755,-426.00158963,0.00022466,2]
[365545372,1749775843768,-73.99841037,0.00022466,2]
[365545374,1749775843778,-500.0,0.00022466,2]
[365545376,1749775843789,-500.0,0.00022466,2]
[365545378,1749775843799,-500.0,0.00022466,2]
[365545380,1749775843809,-500.0,0.00022466,2]
[365545382,1749775843819,-500.0,0.00022466,2]
[365545384,1749775843832,-500.0,0.00022466,2]
[365545386,1749775843841,-205.41224031,0.00022466,2]
[365545388,1749775843851,-460.0,0.00023058,4]
[365545390,1749775843860,-460.0,0.00023332,4]
[365545392,1749775843870,-4555.11,0.00023367,2]
[365545394,1749775843879,-460.0,0.00023606,4]
[365545396,1749775843889,-4203.63493368,0.000238,3]
[365545398,1749775843898,-160.0,0.000238,3]
[365545400,1749775843908,-160.0,0.000238,3]
[365545402,1749775843918,-424.26423502,0.000238,3]
[365545404,1749775843927,-408.08,0.00023826,3]
[365545406,1749775843937,-500.0,0.00023833,2]
[365545407,1749775843947,-500.0,0.00023833,2]
[365545409,1749775843958,-500.0,0.00023858,2]
[365545411,1749775843967,-801.09,0.0002388,4]
[365545413,1749775843977,-460.0,0.0002388,4]
[365545415,1749775843987,-460.0,0.0002388,4]
[365545418,1749775843997,-460.0,0.0002388,4]
[365545419,1749775844006,-661.6,0.0002388,4]
[365545421,1749775844015,-460.0,0.0002388,4]
[365545423,1749775844025,-2040.8,0.00023881,3]
[365545425,1749775844034,-500.0,0.00023881,2]
[365545437,1749775844142,-151.0,0.000239,6]
[365545439,1749775844152,-190.92129634,0.00023917,2]
[365545441,1749775844162,-816.16,0.00023923,3]
[365545443,1749775844172,-819.314618,0.00023926,3]
[365545445,1749775844182,-460.0,0.00023933,4]
[365545447,1749775844191,-460.0,0.00023933,4]
[365545449,1749775844201,-594.85,0.00023933,4]
[365545451,1749775844211,-460.0,0.00023933,4]
[365545453,1749775844220,-280.0,0.00023933,4]
[365545455,1749775844229,-460.0,0.00023933,4]
[365545456,1749775844240,-460.0,0.00023933,4]
[365545458,1749775844250,-1233.9,0.00023933,4]
[365545460,1749775844260,-460.0,0.00023933,4]
[365545462,1749775844269,-460.0,0.00023933,4]
[365545465,1749775844280,-460.0,0.00023933,4]
[365545466,1749775844289,-460.0,0.00023933,4]
[365545468,1749775844299,-1097.93,0.00023933,4]
[365545470,1749775844308,-460.0,0.00023933,4]
[365545472,1749775844317,-460.0,0.00023934,2]
[365545474,1749775844329,-178.0,0.00023984,2]
[365545476,1749775844339,-3339.70409331,0.00024,2]
[365545478,1749775844351,-3670.76641744,0.00024,2]
[365545480,1749775844363,-151.0,0.00024,7]
[365545482,1749775844372,-151.0,0.00024,7]
[365545484,1749775844383,-2000.0,0.00024,2]
[365545486,1749775844392,-2000.0,0.00024,2]
[365545488,1749775844402,-2000.0,0.00024,2]
[365545490,1749775844412,-2000.0,0.00024,2]
[365545492,1749775844422,-156.0,0.00024,2]
[365545494,1749775844432,-273.4,0.00024,2]
[365545496,1749775844442,-151.0,0.00024,7]
[365545499,1749775844451,-151.0,0.00024,7]
[365545501,1749775844462,-151.0,0.00024,7]
[365545503,1749775844472,-151.0,0.00024,7]
[365545505,1749775844482,-151.0,0.00024,7]
[365545507,1749775844492,-151.0,0.00024,7]
[365545509,1749775844501,-951016.06375553,0.00024,3]
[365545511,1749775844516,-41354.0,0.00024,3]
[365545717,1749775846385,-311.74,0.00021688,4]
[365546527,1749775884040,1561.69342878,0.00024928,60]
[365546528,1749775889833,155.0003091,0.00024928,60]
[365546529,1749775891943,200.0,0.00023401,120]
[365546531,1749775951289,200.0,0.000233,120]
[365546533,1749776011089,200.0,0.0002339,120]
[365546534,1749776013328,150.5,0.00024401,120]
[365546535,1749776013782,150.5,0.00024391,120]
[365546536,1749776014242,150.5,0.00024381,120]
[365546539,1749776071325,200.0,0.00023816,120]
[365546977,1749776191302,200.0,0.00023427,120]
[365546978,1749776212878,2000.0,0.00020959,120]
[365546979,1749776251105,200.0,0.000243,120]
[365546982,1749776311057,200.0,0.00023721,120]
[365546987,1749776491393,200.0,0.00023234,120]
[365546992,1749776551315,200.0,0.00024152,120]
[365546998,1749776671819,200.0,0.00024204,120]
[365547001,1749776761161,151.0,0.00024658,120]
[365547002,1749776786619,155.0,0.00024658,120]
[365547004,1749776801742,301.776499,0.00013699,2]
[365547006,1749776820184,-301.776499,0.00020187,2]
[365547007,1749776820210,-2103.63,0.00021412,2]
[365547008,1749776820238,-300.0,0.00021528,2]
[365547009,1749776820265,-300.0,0.00021528,2]
[365547010,1749776820297,-460.0,0.00021529,4]
[365547011,1749776820323,-440.0,0.00021529,4]
[365547012,1749776820351,-460.0,0.00021529,4]
[365547013,1749776820378,-460.0,0.00021529,4]
[365547014,1749776820405,-460.0,0.00021529,4]
[365547015,1749776820430,-440.0,0.00021529,4]
[365547016,1749776820455,-440.0,0.00021529,4]
[365547017,1749776820481,-440.0,0.00021529,4]
[365547018,1749776820666,-460.0,0.00021529,4]
[365547019,1749776820689,-460.0,0.00021529,4]
[365547020,1749776820710,-460.0,0.00021529,4]
[365547021,1749776820732,-460.0,0.00021529,2]
[365547022,1749776820756,-771.19,0.00021529,4]
[365547023,1749776820782,-460.0,0.00021688,4]
[365547024,1749776820804,-460.0,0.00021803,4]
[365547025,1749776820830,-460.0,0.00021803,4]
[365547026,1749776820853,-460.0,0.00021803,4]
[365547027,1749776820877,-460.0,0.00021803,4]
[365547028,1749776820905,-460.0,0.00021803,4]
[365547029,1749776820930,-460.0,0.00021803,4]
[365547030,1749776820952,-460.0,0.00021803,4]
[365547031,1749776820975,-460.0,0.00021803,2]
[365547032,1749776821002,-771.19,0.00021803,4]
[365547033,1749776821025,-153.0545007,0.000219,2]
[365547034,1749776821057,-152.18455789,0.000219,2]
[365547035,1749776821084,-527.46,0.00021961,4]
[365547036,1749776821110,-460.0,0.00021961,4]
[365547037,1749776821136,-500.68,0.00021961,4]
[365547038,1749776821162,-460.0,0.00021961,4]
[365547039,1749776821185,-440.0,0.00021961,4]
[365547040,1749776821210,-460.0,0.00021961,4]
[365547041,1749776821234,-460.0,0.00021961,4]
[365547042,1749776821258,-460.0,0.00021961,4]
[365547043,1749776821287,-260.0,0.00021961,4]
[365547044,1749776821311,-153.33158007,0.00021961,4]
[365547045,1749776821335,-440.0,0.00021961,4]
[365547046,1749776821358,-460.0,0.00021961,4]
[365547047,1749776821380,-260.0,0.00021961,4]
[365547048,1749776821404,-460.0,0.00021961,4]
[365547049,1749776821427,-460.0,0.00021961,4]
[365547050,1749776821450,-487.25,0.00021961,4]
[365547051,1749776821471,-165.38623123,0.00021961,4]
[365547052,1749776821494,-460.0,0.00021961,4]
[365547053,1749776821517,-460.0,0.00021961,4]
[365547054,1749776821546,-460.0,0.00021962,4]
[365547055,1749776822212,500.0,0.00020593,2]
[365547056,1749776822450,300.0,0.00021528,2]
[365547057,1749776827360,520.4,0.00021961,4]
[365547058,1749776833117,2076.86,0.00021206,2]
[365547059,1749776836267,553.8319092,0.00024,120]
[365547060,1749776841569,460.0,0.00021961,4]
[365547061,1749776844089,-460.0,0.00022077,4]
[365547062,1749776844114,-460.0,0.00022077,4]
[365547063,1749776844136,-460.0,0.00022077,4]
[365547064,1749776844160,-460.0,0.00022077,4]
[365547065,1749776844184,-460.0,0.00022077,4]
[365547066,1749776844207,-460.0,0.00022077,4]
[365547067,1749776844228,-460.0,0.00022077,4]
[365547068,1749776844251,-460.0,0.00022077,2]
[365547069,1749776844274,-771.19,0.00022077,4]
[365547070,1749776844297,-162.781,0.00022136,2]
[365547071,1749776844320,-460.0,0.00022235,4]
[365547072,1749776844345,-500.68,0.00022235,4]
[365547073,1749776844369,-460.0,0.00022235,4]
[365547074,1749776844392,-360.0,0.00022235,4]
[365547075,1749776844416,-460.0,0.00022235,4]
[365547076,1749776844439,-460.55,0.00022235,4]
[365547077,1749776844463,-460.0,0.00022235,4]
[365547078,1749776844485,-460.0,0.00022235,4]
[365547079,1749776844508,-460.0,0.00022235,4]
[365547080,1749776844531,-460.0,0.00022235,4]
[365547081,1749776844557,-520.4,0.00022235,4]
[365547082,1749776844580,-460.0,0.00022236,4]
[365547083,1749776844601,-160.0,0.00022249,2]
[365547084,1749776844623,-460.0,0.00022351,4]
[365547085,1749776844647,-460.0,0.00022351,4]
[365547086,1749776844669,-460.0,0.00022351,4]
[365547087,1749776844834,-460.0,0.00022351,4]
[365547088,1749776844858,-460.0,0.00022351,4]
[365547089,1749776844882,-460.0,0.00022351,4]
[365547090,1749776844903,-460.0,0.00022351,4]
[365547091,1749776844924,-460.0,0.00022351,2]
[365547092,1749776844947,-771.19,0.00022351,4]
[365547093,1749776844968,-844.79171733,0.00022403,2]
[365547094,1749776844990,-229.7508257,0.00022403,2]
[365547095,1749776845013,-213.20212768,0.00022403,2]
[365547096,1749776845032,-835.15920933,0.00022403,2]
[365547097,1749776845055,-424.26423502,0.00022403,2]
[365547098,1749776845078,-460.0,0.00022509,4]
[365547099,1749776845101,-500.68,0.00022509,4]
[365547100,1749776845124,-460.0,0.00022509,4]
[365547101,1749776845148,-460.0,0.00022509,4]
[365547102,1749776845172,-460.0,0.00022509,4]
[365547103,1749776845193,-528.26,0.00022509,4]
[365547104,1749776845219,-460.0,0.00022509,4]
[365547105,1749776845242,-460.0,0.00022509,4]
[365547106,1749776845265,-520.4,0.00022509,4]
[365547107,1749776845288,-460.0,0.0002251,4]
[365547108,1749776845314,-360.0,0.00022625,4]
[365547109,1749776845337,-460.0,0.00022625,4]
[365547110,1749776845360,-263.0,0.00022625,4]
[365547111,1749776845383,-460.0,0.00022625,4]
[365547112,1749776845406,-460.0,0.00022625,4]
[365547113,1749776845430,-460.0,0.00022625,4]
[365547114,1749776845450,-360.0,0.00022625,4]
[365547115,1749776845471,-460.0,0.00022625,2]
[365547116,1749776845495,-771.19,0.00022625,4]
[365547117,1749776845517,-207.4,0.00022721,2]
[365547118,1749776845541,-460.0,0.00022783,4]
[365547119,1749776845567,-500.68,0.00022783,4]
[365547120,1749776845592,-460.0,0.00022783,4]